bitfinex-derivatives/quotes_SOLF0:USTF0_20260305
["timestamp","ask_amount","ask_price","bid_price","bid_amount"]
[1772721353275,9.03661172,91.31,91.17,10.73441944]
[1772721353276,11.6424617,91.254,91.17,10.73441944]
[1772721353482,11.6424617,91.254,91.171,1.70063914]
[1772721353870,11.6424617,91.254,91.125,19.75]
[1772721354075,11.6424617,91.254,91.161,1.70084635]
[1772721354276,11.6424617,91.254,91.14,9.03661172]
[1772721354475,11.6424617,91.227,91.14,10.74025696]
[1772721354675,11.6424617,91.227,91.141,1.70364524]
[1772721355076,11.6424617,91.226,91.147,9.872]
[1772721355272,11.6424617,91.226,91.141,1.70364524]
[1772721355579,11.6424617,91.226,91.12,10.81305608]
[1772721355771,11.6424617,91.219,91.12,10.81305608]
[1772721355979,11.6424617,91.219,91.121,1.77644436]
[1772721356370,9.03661172,91.23,91.135,9.873]
[1772721356371,11.6424617,91.213,91.135,9.873]
[1772721357173,11.6424617,91.213,91.121,1.77644436]
[1772721357174,11.6424617,91.209,91.123,9.875]
[1772721357881,11.6424617,91.209,91.134,9.874]
[1772721358083,11.6424617,91.209,91.121,2.07366636]
[1772721359479,11.6424617,91.198,91.121,11.94866636]
[1772721359872,11.6424617,91.198,91.121,2.07366636]
[1772721360082,11.6424617,91.198,91.133,9.874]
[1772721360384,11.6424617,91.189,91.094,2.14438526]
[1772721360576,11.6424617,91.162,91.086,2.14438526]
[1772721361078,11.6424617,91.157,91.085,420.14760286]
[1772721361274,11.6424617,91.157,91.061,2.24070234]
[1772721361480,11.6424617,91.139,91.061,2.24070234]
[1772721361675,9.03661172,91.14,91.038,9.884]
[1772721361676,11.6424617,91.114,91.038,9.884]
[1772721361878,11.6424617,91.114,91.036,2.24352805]
[1772721362076,0.0004617,91.139,91.051,2.24352805]
[1772721362274,13.43056651,91.221,91.03,9.03661172]
[1772721362275,9.03661172,91.17,91.078,11.36342336]
[1772721362679,9.03661172,91.17,91.107,9.877]
[1772721362879,9.03661172,91.22,91.111,11.36342336]
[1772721363286,183.3505283,91.252,91.131,11.36342336]
[1772721363586,183.3505283,91.252,91.15,20.40003508]
[1772721363781,193.2115283,91.252,91.169,9.87]
[1772721363981,193.2115283,91.252,91.151,11.36342336]
[1772721363982,193.2115283,91.252,91.17,9.03661172]
[1772721364178,11.6424617,91.251,91.17,9.03661172]
[1772721364381,11.6424617,91.251,91.151,11.36342336]
[1772721364786,11.6424617,91.251,91.181,11.36342336]
[1772721364985,11.6424617,91.251,91.15,9.03661172]
[1772721364986,11.6424617,91.251,91.158,11.36342336]
[1772721365284,11.6424617,91.251,91.17,9.03661172]
[1772721365481,11.6424617,91.248,91.17,9.87]
[1772721365883,11.6424617,91.248,91.158,11.36342336]
[1772721366077,11.6424617,91.239,91.163,9.87]
[1772721366487,11.6424617,91.239,91.15,9.03661172]
[1772721366488,11.6424617,91.264,91.181,11.36342336]
[1772721367281,11.6424617,91.264,91.205,9.866]
[1772721367680,11.6424617,91.259,91.157,11.36342336]
[1772721367989,11.6424617,91.239,91.15,9.03661172]
[1772721368182,11.6424617,91.239,91.151,11.36342336]
[1772721368382,11.6424617,91.239,91.179,9.869]
[1772721368892,11.6424617,91.239,91.189,9.868]
[1772721369284,11.6424617,91.279,91.19,9.03661172]
[1772721369484,11.6424617,91.262,91.201,9.866]
[1772721370089,11.6424617,91.262,91.212,9.865]
[1772721370286,11.6424617,91.262,91.19,9.03661172]
[1772721370489,11.6424617,91.262,91.171,11.36342336]
[1772721370686,11.6424617,91.262,91.207,9.866]
[1772721370990,9.03661172,91.28,91.151,153.568]
[1772721370991,11.6424617,91.299,91.211,11.36342336]
[1772721372388,11.6424617,91.298,91.21,9.03661172]
[1772721372586,11.6424617,91.259,91.17,9.03661172]
[1772721373190,11.6424617,91.259,91.165,11.36342336]
[1772721373698,11.6424617,91.241,91.17,9.03661172]
[1772721373987,0.0004617,91.241,91.17,20.40003508]
[1772721374291,9.862,91.24,91.17,11.36342336]
[1772721374794,9.862,91.24,91.15,9.03661172]
[1772721374995,9.03661172,91.29,91.18,20.40003508]
[1772721375196,9.03661172,91.29,91.181,11.36342336]
[1772721375396,9.861,91.251,91.184,9.868]
[1772721375596,9.03661172,91.29,91.181,11.36342336]
[1772721375789,9.03661172,91.27,91.181,11.36342336]
[1772721376097,11.19973827,91.269,91.181,11.36342336]
[1772721376296,9.86,91.259,91.192,9.867]
[1772721376591,11.19973827,91.258,91.181,11.36342336]
[1772721377090,11.19973827,91.282,91.2,9.03661172]
[1772721377284,11.19973827,91.267,91.18,9.03661172]
[1772721377489,11.19973827,91.259,91.162,11.08273833]
[1772721377895,9.864,91.227,91.162,20.95373833]
[1772721378089,11.19973827,91.237,91.162,11.08273833]
[1772721378490,11.19973827,91.237,91.181,9.868]
[1772721378890,11.19973827,91.237,91.162,11.08273833]
[1772721379090,11.25023871,91.236,91.139,10.52036943]
[1772721379289,11.25023871,91.219,91.139,10.52036943]
[1772721379888,11.25023871,91.219,91.092,265.00776641]
[1772721380093,11.25023871,91.209,91.111,10.52036943]
[1772721380605,11.25023871,91.276,91.147,10.52036943]
[1772721380895,11.25023871,91.259,91.2,9.03661172]
[1772721381090,9.03661172,91.29,91.2,9.03661172]
[1772721381091,11.25023871,91.289,91.201,10.52036943]
[1772721381293,9.03661172,91.33,91.221,10.52036943]
[1772721381499,9.03661172,91.31,91.221,10.52036943]
[1772721381702,9.03661172,91.31,91.201,10.52036943]
[1772721382095,9.856,91.296,91.233,9.863]
[1772721382394,9.03661172,91.31,91.201,10.52036943]
[1772721382589,9.03661172,91.29,91.201,10.52036943]
[1772721382789,9.859,91.273,91.219,9.864]
[1772721382994,9.03661172,91.29,91.201,10.52036943]
[1772721383194,10.74961717,91.289,91.201,10.52036943]
[1772721383394,9.03661172,91.31,91.22,9.03661172]
[1772721383601,19.698,91.364,91.199,153.487]
[1772721383602,10.74961717,91.318,91.24,9.03661172]
[1772721383801,10.75245373,91.317,91.254,9.861]
[1772721383988,10.75245373,91.317,91.221,10.52036943]
[1772721384196,10.75245373,91.309,91.221,10.52036943]
[1772721384498,9.856,91.294,91.233,9.863]
[1772721384698,20.60403036,91.294,91.233,9.863]
[1772721384905,10.74803036,91.294,91.242,9.862]
[1772721385492,592.14992708,91.319,91.231,10.52036943]
[1772721385696,10.7132961,91.318,91.231,10.52036943]
[1772721386202,10.7132961,91.317,91.256,9.86]
[1772721386900,9.854,91.314,91.256,9.86]
[1772721387101,19.698,91.364,91.2,28.76961172]
[1772721387102,10.68581368,91.367,91.28,9.03661172]
[1772721387400,10.68581368,91.367,91.28,19.4066217]
[1772721387600,10.66647117,91.365,91.295,9.856]
[1772721387797,10.66647117,91.365,91.281,10.37000998]
[1772721388199,10.66647117,91.365,91.26,19.4066217]
[1772721388498,10.66647117,91.365,91.261,10.37000998]
[1772721388702,10.6619724,91.363,91.292,9.856]
[1772721389098,10.6619724,91.363,91.261,10.37000998]
[1772721389300,1.90539808,91.415,91.26,9.03661172]
[1772721389301,0.00012753,91.368,91.31,9.03661172]
[1772721389501,0.00012753,91.368,91.311,10.37000998]
[1772721390402,0.00012753,91.368,91.291,153.331]
[1772721390403,0.00012753,91.368,91.331,10.37000998]
[1772721390899,0.00012753,91.368,91.325,9.853]
[1772721391401,0.00012753,91.368,91.313,9.854]
[1772721392005,0.00012753,91.368,91.323,9.853]
[1772721392408,0.00012753,91.368,91.31,9.03661172]
[1772721392604,0.00012753,91.368,91.311,9.854]
[1772721392800,10.93436933,91.368,91.29,9.03661172]
[1772721393103,0.00012753,91.368,91.291,10.37000998]
[1772721393301,0.00012753,91.368,91.311,10.37000998]
[1772721393601,10.91481527,91.42,91.359,9.849]
[1772721393800,10.91588142,91.449,91.351,10.37000998]
[1772721394007,9.841,91.44,91.351,10.37000998]
[1772721394300,9.03661172,91.46,91.37,19.4066217]
[1772721394301,10.91588142,91.439,91.37,19.4066217]
[1772721394503,10.91588142,91.439,91.371,10.37000998]
[1772721394701,9.03661172,91.5,91.33,9.03661172]
[1772721394702,10.89667803,91.479,91.391,10.37000998]
[1772721394909,10.89667803,91.479,91.392,10.37000998]
[1772721395807,10.89667803,91.479,91.41,9.03661172]
[1772721396002,10.87946609,91.509,91.417,10.37000998]
[1772721396199,10.87946609,91.469,91.393,10.37000998]
[1772721396404,10.87946609,91.469,91.39,9.03661172]
[1772721396796,9.839,91.454,91.379,9.847]
[1772721397002,11.00827711,91.449,91.351,10.37000998]
[1772721397407,11.00827711,91.449,91.287,420.50829013]
[1772721397408,11.00827711,91.419,91.337,9.852]
[1772721397709,11.00827711,91.409,91.321,10.37000998]
[1772721398301,9.03661172,91.41,91.325,9.853]
[1772721398302,11.00827711,91.407,91.325,9.853]
[1772721398709,11.00827711,91.407,91.321,10.37000998]
[1772721398911,11.00827711,91.392,91.313,9.854]
[1772721399205,11.00827711,91.392,91.311,10.37000998]
[1772721399404,11.00827711,91.413,91.335,9.852]
[1772721399604,11.00827711,91.413,91.32,9.03661172]
[1772721399805,11.00827711,91.399,91.311,10.37000998]
[1772721400305,9.846,91.394,91.324,9.853]
[1772721400706,11.00827711,91.399,91.321,10.37000998]
[1772721401106,11.00827711,91.399,91.3,9.03661172]
[1772721401508,9.848,91.368,91.297,9.856]
[1772721402403,10.75210216,91.377,91.294,10.37000998]
[1772721403006,9.849,91.363,91.295,9.856]
[1772721403606,9.848,91.374,91.305,9.855]
[1772721403812,10.61367475,91.373,91.294,10.37000998]
[1772721404016,10.61367475,91.395,91.301,10.37000998]
[1772721404509,10.59656647,91.379,91.287,430.87830011]
[1772721404711,10.59656647,91.379,91.3,19.4066217]
[1772721405007,10.55141162,91.371,91.306,9.855]
[1772721405408,10.55141162,91.371,91.3,10.37000998]
[1772721405605,10.53449985,91.359,91.273,10.37000998]
[1772721406218,9.852,91.331,91.273,10.37000998]
[1772721406410,20.37084455,91.331,91.261,9.86]
[1772721406609,9.853,91.321,91.252,9.861]
[1772721406812,10.51884455,91.331,91.251,10.37000998]
[1772721407413,10.51884455,91.331,91.252,9.861]
[1772721407613,10.51884455,91.331,91.251,10.37000998]
[1772721408017,10.51884455,91.331,91.272,9.859]
[1772721408205,10.51884455,91.331,91.251,10.37000998]
[1772721408407,10.45656642,91.329,91.251,10.37000998]
[1772721408612,10.45656642,91.329,91.23,9.04402128]
[1772721408817,10.45656642,91.329,91.231,10.8242086]
[1772721409617,9.85219068,91.318,91.231,10.8242086]
[1772721410119,9.85523397,91.339,91.241,10.8242086]
[1772721410316,9.83945593,91.319,91.22,9.04402128]
[1772721410714,9.83945593,91.278,91.2,9.04402128]
[1772721410912,9.83945593,91.278,91.201,10.8242086]
[1772721411222,9.86,91.265,91.201,20.6902086]
[1772721411421,9.83945593,91.278,91.201,10.8242086]
[1772721411719,9.80971286,91.299,91.243,9.862]
[1772721412020,9.80971286,91.299,91.228,10.8242086]
[1772721412215,9.80971286,91.299,91.206,10.8242086]
[1772721412615,9.80971286,91.299,91.221,10.8242086]
[1772721413014,9.856,91.296,91.221,10.8242086]
[1772721413421,9.76564612,91.319,91.221,10.8242086]
[1772721413615,9.855,91.308,91.248,9.861]
[1772721414209,18.79599663,91.34,91.247,10.8242086]
[1772721414418,9.75197535,91.34,91.247,10.8242086]
[1772721414928,9.75197535,91.34,91.261,10.8242086]
[1772721415513,9.63476567,91.339,91.261,10.8242086]
[1772721416213,9.852,91.337,91.272,9.859]
[1772721416715,9.63476567,91.339,91.261,9.86]
[1772721416922,9.66175908,91.329,91.237,10.8242086]
[1772721417217,9.853,91.323,91.263,9.86]
[1772721417416,9.66175908,91.329,91.237,10.8242086]
[1772721417814,9.854,91.316,91.261,9.86]
[1772721418120,9.66175908,91.329,91.237,10.8242086]
[1772721418513,9.856,91.301,91.241,9.862]
[1772721418713,9.63419615,91.307,91.211,10.8242086]
[1772721419113,9.857,91.291,91.229,9.863]
[1772721419313,9.63419615,91.307,91.211,10.8242086]
[1772721419915,9.859,91.273,91.219,9.864]
[1772721420312,9.64829107,91.284,91.211,10.8242086]
[1772721420516,9.64829107,91.284,91.227,9.863]
[1772721420915,9.04402128,91.31,91.211,10.8242086]
[1772721420916,9.64799607,91.306,91.211,10.8242086]
[1772721421121,9.64799607,91.359,91.251,10.8242086]
[1772721421420,9.64799607,91.359,91.294,9.856]
[1772721421421,9.851,91.348,91.294,9.856]
[1772721421614,9.64799607,91.359,91.271,10.8242086]
[1772721422916,9.62185415,91.379,91.31,9.04402128]
[1772721423218,9.60827633,91.389,91.291,10.8242086]
[1772721423516,13.38349857,91.443,91.291,10.8242086]
[1772721423517,9.849,91.366,91.3,9.856]
[1772721423724,9.60827633,91.365,91.3,9.856]
[1772721423923,9.60953599,91.359,91.27,10.8242086]
[1772721424122,9.60953599,91.359,91.23,9.04402128]
[1772721424123,9.60953599,91.319,91.23,9.04402128]
[1772721424421,9.59611412,91.299,91.204,10.8242086]
[1772721424722,9.86,91.258,91.171,10.8242086]
[1772721424914,9.57663723,91.259,91.171,10.8242086]
[1772721425114,9.57663723,91.239,91.141,10.8242086]
[1772721425312,9.56336953,91.219,91.141,10.8242086]
[1772721426018,9.04402128,91.2,91.114,10.8242086]
[1772721426220,9.56461299,91.199,91.092,265.00776641]
[1772721426523,9.04402128,91.21,91.127,10.8242086]
[1772721426723,9.53399279,91.209,91.127,10.8242086]
[1772721427114,19.39899279,91.209,91.128,9.874]
[1772721427320,9.52102812,91.208,91.128,9.874]
[1772721427516,9.52102812,91.208,91.129,10.8242086]
[1772721428123,9.5222543,91.205,91.119,9.875]
[1772721428316,9.5222543,91.205,91.105,10.8242086]
[1772721428519,9.5222543,91.205,91.121,10.8242086]
[1772721428715,9.5222543,91.205,91.123,10.8242086]
[1772721429123,9.5222543,91.205,91.137,9.873]
[1772721429422,9.865,91.218,91.123,10.8242086]
[1772721429423,9.16077475,91.199,91.123,10.8242086]
[1772721429819,9.16216874,91.179,91.099,10.8242086]
[1772721430426,9.04402128,91.2,91.113,10.8242086]
[1772721430618,9.1496457,91.202,91.113,10.8242086]
[1772721430824,18.23318404,91.2,91.121,9.875]
[1772721431019,9.18916276,91.219,91.122,10.8242086]
[1772721431521,9.18916276,91.219,91.124,9.875]
[1772721432124,9.18916276,91.219,91.125,10.8242086]
[1772721432419,9.16588703,91.208,91.125,10.8242086]
[1772721433020,9.00929366,91.202,91.127,9.874]
[1772721433616,9.00929366,91.202,91.098,10.8242086]
[1772721433817,8.99859483,91.189,91.098,10.8242086]
[1772721434021,8.99859483,91.188,91.114,9.876]
[1772721434222,9.04402128,91.21,91.111,10.8242086]
[1772721434426,8.98663731,91.209,91.111,10.8242086]
[1772721434718,8.98663731,91.207,91.111,10.8242086]
[1772721434919,8.98811334,91.189,91.111,10.8242086]
[1772721435718,8.98811334,91.189,91.124,9.875]
[1772721436318,9.04402128,91.21,91.111,10.8242086]
[1772721436519,8.96597441,91.213,91.121,10.8242086]
[1772721437024,8.96597441,91.213,91.155,9.871]
[1772721437529,9.863,91.235,91.165,9.87]
[1772721438019,8.94171149,91.236,91.176,9.869]
[1772721438222,8.94171149,91.236,91.144,10.8242086]
[1772721438420,9.04402128,91.25,91.144,10.8242086]
[1772721438626,8.9316359,91.229,91.144,10.8242086]
[1772721439223,9.04402128,91.22,91.144,10.8242086]
[1772721440527,9.04402128,91.24,91.16,9.04402128]
[1772721440831,9.04402128,91.24,91.14,19.87911818]
[1772721441031,9.863,91.228,91.159,9.871]
[1772721441230,9.04402128,91.22,91.14,10.8350969]
[1772721441729,9.866,91.209,91.144,9.872]
[1772721442928,9.864,91.219,91.153,9.871]
[1772721443321,9.04402128,91.22,91.162,9.87]
[1772721443527,9.863,91.229,91.141,10.84097713]
[1772721443830,9.863,91.231,91.141,10.84097713]
[1772721444330,9.04402128,91.24,91.141,10.84097713]
[1772721445433,0.02913261,91.239,91.141,10.84097713]
[1772721445628,0.02582425,91.217,91.141,10.84097713]
[1772721447528,9.866,91.204,91.149,9.872]
[1772721448031,9.95995456,91.201,91.121,10.83896823]
[1772721448629,9.04402128,91.22,91.158,9.871]
[1772721448630,9.865,91.216,91.158,9.871]
[1772721448824,0.11671076,91.219,91.141,10.84128952]
[1772721449227,0.11671076,91.219,91.158,9.871]
[1772721449422,0.11671076,91.219,91.141,10.84128952]
[1772721451036,0.13571997,91.199,91.1,9.04402128]
[1772721451231,0.13571997,91.199,91.131,9.874]
[1772721451232,9.869,91.179,91.131,9.874]
[1772721451428,0.13571997,91.199,91.121,10.85871345]
[1772721452038,0.15910453,91.229,91.121,10.85871345]
[1772721452640,0.15910453,91.229,91.146,10.8602539]
[1772721453240,0.15910453,91.229,91.12,9.04402128]
[1772721453241,0.19912778,91.259,91.161,10.86625353]
[1772721453537,0.19912778,91.259,91.129,153.605]
[1772721453538,9.04402128,91.28,91.181,10.86625353]
[1772721453744,9.858,91.277,91.226,9.864]
[1772721453946,186.73935969,91.286,91.205,10.86776409]
[1772721454239,186.73935969,91.286,91.239,9.862]
[1772721454440,0.19610666,91.305,91.221,10.86776409]
[1772721456247,9.857,91.284,91.224,9.864]
[1772721456545,0.23713009,91.319,91.221,10.86776409]
[1772721457439,0.23713009,91.319,91.127,153.607]
[1772721457440,0.53963007,91.221,91.086,10.77656168]
[1772721457644,0.537028,91.139,91.021,10.77656168]
[1772721458043,0.537028,91.139,91.041,10.77656168]
[1772721458246,9.873,91.137,91.062,9.881]
[1772721458446,9.04402128,91.14,91.011,153.803]
[1772721458447,9.04402128,91.16,91.063,10.77656168]
[1772721458943,9.04402128,91.16,91.067,10.77656168]
[1772721459448,9.871,91.159,91.071,10.77656168]
[1772721459838,0.75429211,91.159,91.071,10.77656168]
[1772721460043,9.872,91.148,91.071,10.77656168]
[1772721460240,0.77814413,91.189,91.071,10.77656168]
[1772721460438,0.77814413,91.189,91.052,153.734]
[1772721460439,0.77814413,91.189,91.101,10.77656168]
[1772721460740,9.04402128,91.21,91.126,10.77656168]
[1772721461147,0.56728393,91.189,91.099,10.77656168]
[1772721461347,9.04402128,91.17,91.099,10.77656168]
[1772721461645,9.871,91.156,91.099,10.77656168]
[1772721461846,9.04402128,91.19,91.081,10.77656168]
[1772721462246,9.869,91.182,91.098,10.77656168]
[1772721462442,0.61164785,91.186,91.098,10.77656168]
[1772721462640,9.04402128,91.17,91.098,10.77656168]
[1772721462844,0.76517127,91.169,91.071,10.77656168]
[1772721463345,9.871,91.157,91.071,10.77656168]
[1772721464050,0.76517127,91.169,91.071,10.77656168]
[1772721464845,9.04402128,91.13,91.044,10.77757142]
[1772721465249,0.64209001,91.146,91.03,9.04402128]
[1772721465250,0.64209001,91.146,91.051,10.77757142]
[1772721465856,0.64209001,91.146,91.063,10.77877922]
[1772721466553,9.08440891,91.14,91.063,10.77877922]
[1772721466755,28.81740891,91.2,91.006,153.811]
[1772721466756,9.08440891,91.16,91.065,10.77656168]
[1772721468454,9.871,91.157,91.084,9.879]
[1772721468654,9.08440891,91.18,91.085,10.77656168]
[1772721468953,9.87,91.165,91.085,10.77656168]
[1772721469154,9.08440891,91.16,91.085,10.77656168]
[1772721470653,0.77601773,91.159,91.062,10.8004974]
[1772721471459,0.80887073,91.137,91.036,10.79446588]
[1772721471657,0.80887073,91.119,91.036,10.79446588]
[1772721471958,9.08440891,91.1,91.036,10.79446588]
[1772721472553,9.877,91.107,91.043,9.883]
[1772721472751,0.82717773,91.128,91.044,10.79359936]
[1772721472953,0.83115492,91.089,91.011,10.79359936]
[1772721473253,18.96540891,91.07,91.011,10.79359936]
[1772721473458,0.83115492,91.089,91.011,10.79359936]
[1772721473658,9.88,91.072,91.011,10.79359936]
[1772721474458,9.881,91.068,91.011,10.79359936]
[1772721474856,9.08440891,91.07,90.971,10.8554316]
[1772721475155,9.881,91.068,90.999,9.888]
[1772721475854,9.882,91.058,90.999,9.888]
[1772721476554,9.882,91.058,90.994,10.8554316]
[1772721477858,9.881,91.068,90.995,20.70811699]
[1772721478457,9.08440891,91.07,90.97,9.08440891]
[1772721478458,9.08440891,91.07,90.996,10.81911699]
[1772721479163,9.88,91.077,91.003,10.72666557]
[1772721479360,0.83115492,91.089,91.003,10.72666557]
[1772721479557,9.08440891,91.07,91.003,10.72666557]
[1772721479758,9.08440891,91.07,91.005,10.72762433]
[1772721480463,9.88,91.079,91.016,9.886]
[1772721480659,9.88,91.079,91.016,38.33453486]
[1772721480865,9.08440891,91.09,91.036,9.884]
[1772721481064,9.08440891,91.09,91.035,29.0286112]
[1772721481364,10.12538586,91.163,91.035,29.0286112]
[1772721481365,9.874,91.131,91.069,9.881]
[1772721481553,1.54277146,91.138,91.041,10.52511964]
[1772721481754,1.5412316,91.129,91.041,10.52511964]
[1772721481960,1.5412316,91.099,91.035,29.0286112]
[1772721482162,9.08440891,91.08,91.035,29.0286112]
[1772721482560,1.55954061,91.059,91.016,7.46853486]
[1772721482862,1.55954061,91.059,91.016,0.00053486]
[1772721483765,9.882,91.058,91.016,0.00053486]
[1772721483958,1.69373076,91.058,91.016,0.00053486]
[1772721484357,9.08440891,91.08,91.016,0.00053486]
[1772721484561,1.71162159,91.079,91.016,0.00053486]
[1772721484960,1.76690807,91.059,91.016,0.00053486]
[1772721485260,1.7845934,91.039,90.959,57.8235651]
[1772721485767,1.78326044,91.019,90.959,57.8235651]
[1772721486267,1.80074263,91.015,90.959,57.8235651]
[1772721486466,10.12538586,91.091,90.959,57.8235651]
[1772721486467,9.08440891,91.05,90.96,11.34086708]
[1772721487067,9.885,91.032,90.975,9.891]
[1772721487264,19.756,91.098,90.96,11.34086708]
[1772721487566,19.756,91.098,90.959,57.8235651]
[1772721487567,9.08440891,91.07,91.002,11.37268082]
[1772721487758,9.08440891,91.09,91.003,11.37335581]
[1772721488764,9.08440891,91.07,91.003,11.37335581]
[1772721488962,9.08440891,91.07,91.002,57.70517757]
[1772721489163,9.883,91.049,91.002,57.70517757]
[1772721489765,9.884,91.04,91.002,57.70517757]
[1772721489965,9.08440891,91.05,91.002,57.70517757]
[1772721490168,9.881,91.068,91.013,9.887]
[1772721490360,9.08440891,91.09,91.003,11.46512787]
[1772721490866,9.08440891,91.11,91.011,11.46103571]
[1772721491169,19.745,91.148,91.002,57.70517757]
[1772721491170,9.08440891,91.13,91.031,11.46103571]
[1772721491371,9.08440891,91.13,91.032,11.46103571]
[1772721491563,9.08440891,91.11,91.032,11.46103571]
[1772721491764,9.879,91.087,91.031,57.75794314]
[1772721491966,9.08440891,91.11,91.031,57.75794314]
[1772721492365,9.08440891,91.13,91.031,57.75794314]
[1772721492366,9.88,91.078,91.031,57.75794314]
[1772721493069,9.08440891,91.09,91.031,40.47394314]
[1772721493773,9.88,91.073,91.031,40.47394314]
[1772721494064,9.08440891,91.09,91.031,40.47394314]
[1772721494670,0.20802662,91.089,91.031,40.47394314]
[1772721495467,0.20802662,91.089,91.031,23.96294314]
[1772721495668,8.48358071,91.122,91.002,57.70517757]
[1772721495669,0.21103517,91.049,91.002,0.00042497]
[1772721495972,9.08440891,91.03,91.002,0.00042497]
[1772721496568,9.08440891,91.07,91.002,0.00042497]
[1772721496769,0.21729535,91.069,91.002,0.00042497]
[1772721496977,9.08440891,91.04,91.002,0.00042497]
[1772721497370,9.30464409,91.04,91.002,0.00042497]
[1772721497571,0.22023518,91.039,91.002,0.00042497]
[1772721497767,9.886,91.023,90.959,28.99515009]
[1772721498671,153.811,91.007,90.883,11.22260406]
[1772721498873,153.811,91.007,90.791,154.177]
[1772721498874,9.08440891,90.93,90.857,11.22260406]
[1772721499067,9.08440891,90.93,90.858,11.23126037]
[1772721499375,0.39351922,90.949,90.861,11.23126037]
[1772721499769,0.39351922,90.949,90.884,9.901]
[1772721499970,9.08440891,90.97,90.885,11.23126037]
[1772721500375,9.08440891,90.97,90.907,9.898]
[1772721500574,9.08440891,90.97,90.885,11.23126037]
[1772721501172,8.48173619,91.005,90.884,28.25374095]
[1772721501173,9.08440891,90.93,90.884,28.25374095]
[1772721501372,0.4295179,90.949,90.857,28.263657]
[1772721501373,0.43229856,90.929,90.857,28.263657]
[1772721501568,0.43229856,90.929,90.857,39.49491737]
[1772721501770,9.896,90.927,90.857,49.39891737]
[1772721502171,9.08440891,90.95,90.858,11.23126037]
[1772721502375,0.43212311,90.958,90.858,11.23126037]
[1772721503377,9.08440891,90.98,90.891,9.9]
[1772721503572,9.08440891,90.98,90.881,11.23126037]
[1772721503573,9.08440891,90.98,90.892,40.12669616]
[1772721503774,9.08440891,90.98,90.893,11.23126037]
[1772721503973,9.08440891,90.98,90.896,11.23126037]
[1772721504168,9.08440891,91.0,90.896,11.23126037]
[1772721504375,9.888,90.999,90.918,11.23126037]
[1772721504575,9.888,90.999,90.918,68.87732804]
[1772721505172,9.08440891,91.0,90.919,21.12826037]
[1772721505377,9.08440891,91.02,90.92,11.23126037]
[1772721505581,9.08440891,91.02,90.931,11.23126037]
[1772721505777,9.08440891,91.0,90.931,11.23126037]
[1772721506383,9.08440891,91.04,90.955,11.23126037]
[1772721506578,2.03674957,91.039,90.956,10.46230525]
[1772721506772,9.886,91.019,90.955,57.2729711]
[1772721507177,1.97026628,91.018,90.955,57.2729711]
[1772721507677,9.08440891,91.0,90.955,57.2729711]
[1772721507879,9.08440891,91.02,90.955,57.2729711]
[1772721508276,1.95438731,90.969,90.86,10.49554079]
[1772721508479,9.08440891,90.94,90.86,10.49554079]
[1772721509082,9.08440891,90.92,90.86,10.49554079]
[1772721509581,1.97090556,90.939,90.86,10.49554079]
[1772721509882,9.08440891,90.95,90.86,10.49554079]
[1772721510678,9.08440891,90.98,90.868,10.47916966]
[1772721510884,9.08440891,90.98,90.891,10.40305554]
[1772721511083,9.08440891,90.98,90.892,10.40305554]
[1772721511280,9.08440891,90.98,90.928,9.896]
[1772721511481,2.96235449,91.019,90.929,10.40305554]
[1772721511684,2.96235449,90.999,90.929,28.99859257]
[1772721512180,2.96220516,90.996,90.929,28.99859257]
[1772721512382,3.03494096,91.032,90.931,10.40305554]
[1772721512586,3.03494096,91.032,90.967,9.892]
[1772721513382,3.03494096,91.032,90.961,29.09953525]
[1772721513584,9.08440891,91.02,90.961,29.09953525]
[1772721513786,9.08440891,91.0,90.961,29.09953525]
[1772721514384,9.08440891,91.0,90.931,10.40305554]
[1772721514585,3.12811514,91.019,90.931,10.40305554]
[1772721515890,3.12811514,91.019,90.954,9.893]
[1772721517187,3.37446457,91.017,90.931,10.40305554]
[1772721517388,3.3557419,90.999,90.881,10.40305554]
[1772721517589,3.3557419,90.998,90.882,10.40305554]
[1772721517892,3.35549292,90.965,90.882,10.40305554]
[1772721518493,9.892,90.962,90.887,9.9]
[1772721518993,3.35549292,90.965,90.906,9.898]
[1772721519389,3.35549292,90.965,90.903,40.24860096]
[1772721519796,38.37776319,90.98,90.904,10.40305554]
[1772721519994,3.3176057,90.978,90.903,40.24860096]
[1772721520196,8.57050608,90.979,90.903,40.24860096]
[1772721520197,3.3176057,90.977,90.904,9.899]
[1772721520398,3.3176057,90.977,90.882,10.40305554]
[1772721520793,9.894,90.95,90.882,10.40305554]
[1772721521392,3.02699862,90.939,90.853,10.45405761]